fUSD/lending_fUSD_20260620
["ID","MTS","AMOUNT","RATE_DAILY","PERIOD"]
[425775144,1781887802000,-500.0,0.00035671,30]
[425775145,1781887802000,-500.0,0.00035671,30]
[425775143,1781887802000,-500.0,0.00035671,30]
[425775155,1781887802000,-500.0,0.00035671,30]
[425775148,1781887802000,-952.89,0.00035671,30]
[425775153,1781887802000,-574.37,0.00035671,30]
[425775157,1781887802000,-2528.15,0.00035671,30]
[425775156,1781887802000,-723.87,0.00035671,30]
[425775171,1781887802000,-500.0,0.00035671,30]
[425775168,1781887802000,-918.47,0.00035671,30]
[425775169,1781887802000,-500.0,0.00035671,30]
[425775167,1781887802000,-722.6,0.00035671,30]
[425775165,1781887802000,-598.94589806,0.00035671,30]
[425775166,1781887802000,-628.07,0.00035671,30]
[425775170,1781887802000,-662.33,0.00035671,30]
[425775162,1781887802000,-500.0,0.00035671,30]
[425775163,1781887802000,-620.19,0.00035671,30]
[425775161,1781887802000,-1182.85,0.00035671,30]
[425775159,1781887802000,-500.0,0.00035671,30]
[425775160,1781887802000,-636.13,0.00035671,30]
[425775158,1781887802000,-695.27,0.00035671,30]
[425775164,1781887802000,-500.0,0.00035671,30]
[425775183,1781887803000,-500.0,0.00035671,30]
[425775180,1781887803000,-500.0,0.00035671,30]
[425775181,1781887803000,-500.0,0.00035671,30]
[425775179,1781887803000,-151.0,0.00035671,30]
[425775177,1781887803000,-636.4,0.00035671,30]
[425775175,1781887803000,-455.87812848,0.00035671,30]
[425775176,1781887803000,-500.0,0.00035671,30]
[425775174,1781887803000,-500.0,0.00035671,30]
[425775173,1781887803000,-900.24,0.00035671,30]
[425775172,1781887803000,-527.80478602,0.00035671,30]
[425775182,1781887803000,-662.63,0.00035671,30]
[425775178,1781887803000,-500.0,0.00035671,30]
[425775184,1781887803000,-155.884691,0.00035671,30]
[425775185,1781887803000,-643.62,0.00035671,30]
[425775199,1781887803000,-947.68,0.00035671,30]
[425775198,1781887803000,-500.0,0.00035671,30]
[425775197,1781887803000,-500.0,0.00035671,30]
[425775196,1781887803000,-172.074929,0.00035671,30]
[425775194,1781887803000,-172.074929,0.00035671,30]
[425775195,1781887803000,-500.0,0.00035671,30]
[425775193,1781887803000,-500.0,0.00035671,30]
[425775186,1781887803000,-172.074929,0.00035671,30]
[425775192,1781887803000,-500.0,0.00035671,30]
[425775190,1781887803000,-2588.84,0.00035671,30]
[425775188,1781887803000,-500.0,0.00035671,30]
[425775189,1781887803000,-151.0,0.00035671,30]
[425775187,1781887803000,-500.0,0.00035671,30]
[425775191,1781887803000,-172.074929,0.00035671,30]
[425775211,1781887804000,-500.0,0.00035671,30]
[425775209,1781887804000,-500.0,0.00035671,30]
[425775210,1781887804000,-500.0,0.00035671,30]
[425775208,1781887804000,-500.0,0.00035671,30]
[425775206,1781887804000,-1083.37,0.00035671,30]
[425775207,1781887804000,-658.41,0.00035671,30]
[425775204,1781887804000,-970.43,0.00035671,30]
[425775203,1781887804000,-500.0,0.00035671,30]
[425775202,1781887804000,-598.87,0.00035671,30]
[425775200,1781887804000,-151.0,0.00035671,30]
[425775201,1781887804000,-500.0,0.00035671,30]
[425775213,1781887804000,-500.0,0.00035671,30]
[425775205,1781887804000,-500.0,0.00035671,30]
[425775214,1781887804000,-500.0,0.00035671,30]
[425775216,1781887804000,-223.52674,0.00035671,30]
[425775215,1781887804000,-500.0,0.00035671,30]
[425775227,1781887804000,-223.526732,0.00035671,30]
[425775225,1781887804000,-500.0,0.00035671,30]
[425775226,1781887804000,-500.0,0.00035671,30]
[425775224,1781887804000,-151.0,0.00035671,30]
[425775212,1781887804000,-846.54,0.00035671,30]
[425775222,1781887804000,-223.52674,0.00035671,30]
[425775223,1781887804000,-500.0,0.00035671,30]
[425775219,1781887804000,-500.0,0.00035671,30]
[425775221,1781887804000,-650.2,0.00035671,30]
[425775218,1781887804000,-223.52674,0.00035671,30]
[425775217,1781887804000,-561.64174296,0.00035671,30]
[425775220,1781887804000,-649.08,0.00035671,30]
[425775234,1781887805000,-585.97,0.00035671,30]
[425775237,1781887805000,-500.0,0.00035671,30]
[425775238,1781887805000,-500.0,0.00035671,30]
[425775236,1781887805000,-846.43,0.00035671,30]
[425775235,1781887805000,-500.0,0.00035671,30]
[425775239,1781887805000,-1066.11,0.00035671,30]
[425775232,1781887805000,-1487.57,0.00035671,30]
[425775230,1781887805000,-500.0,0.00035671,30]
[425775231,1781887805000,-500.0,0.00035671,30]
[425775229,1781887805000,-500.0,0.00035671,30]
[425775228,1781887805000,-500.0,0.00035671,30]
[425775233,1781887805000,-523.50408608,0.00035671,30]
[425775240,1781887805000,-500.0,0.00035671,30]
[425775244,1781887805000,-697.26,0.00035671,30]
[425775243,1781887805000,-678.01,0.00035671,30]
[425775254,1781887805000,-151.0,0.00035671,30]
[425775253,1781887805000,-331.33806,0.00035671,30]
[425775252,1781887805000,-500.0,0.00035671,30]
[425775251,1781887805000,-5570.48,0.00035671,30]
[425775250,1781887805000,-151.0,0.00035671,30]
[425775248,1781887805000,-500.0,0.00035671,30]
[425775241,1781887805000,-500.0,0.00035671,30]
[425775247,1781887805000,-500.0,0.00035671,30]
[425775245,1781887805000,-151.0,0.00035671,30]
[425775246,1781887805000,-151.0,0.00035671,30]
[425775255,1781887805000,-659.831388,0.00035671,30]
[425775242,1781887805000,-1580.21,0.00035671,30]
[425775249,1781887805000,-151.0,0.00035671,30]
[425775265,1781887806000,-500.0,0.00035671,30]
[425775262,1781887806000,-316.692746,0.00035671,30]
[425775263,1781887806000,-331.33806,0.00035671,30]
[425775261,1781887806000,-659.831388,0.00035671,30]
[425775258,1781887806000,-500.0,0.00035671,30]
[425775266,1781887806000,-1018.529363,0.00035671,30]
[425775260,1781887806000,-331.33806,0.00035671,30]
[425775256,1781887806000,-316.692746,0.00035671,30]
[425775257,1781887806000,-500.0,0.00035671,30]
[425775259,1781887806000,-500.0,0.00035671,30]
[425775267,1781887806000,-316.692746,0.00035671,30]
[425775264,1781887806000,-659.831388,0.00035671,30]
[425775268,1781887806000,-500.0,0.00035671,30]
[425775269,1781887806000,-500.0,0.00035671,30]
[425775280,1781887806000,-326.09,0.00035671,30]
[425775281,1781887806000,-1018.52936328,0.00035671,30]
[425775279,1781887806000,-500.0,0.00035671,30]
[425775277,1781887806000,-1018.529363,0.00035671,30]
[425775275,1781887806000,-561.77,0.00035671,30]
[425775278,1781887806000,-500.0,0.00035671,30]
[425775274,1781887806000,-500.0,0.00035671,30]
[425775272,1781887806000,-1018.529363,0.00035671,30]
[425775273,1781887806000,-316.692746,0.00035671,30]
[425775271,1781887806000,-331.338064,0.00035671,30]
[425775270,1781887806000,-659.83138,0.00035671,30]
[425775276,1781887806000,-500.0,0.00035671,30]
[425775292,1781887807000,-1586.38,0.00035671,30]
[425775293,1781887807000,-755.8,0.00035671,30]
[425775290,1781887807000,-697.49,0.00035671,30]
[425775291,1781887807000,-1473.35,0.00035671,30]
[425775288,1781887807000,-500.0,0.00035671,30]
[425775294,1781887807000,-500.0,0.00035671,30]
[425775287,1781887807000,-734.22,0.00035671,30]
[425775285,1781887807000,-500.0,0.00035671,30]
[425775284,1781887807000,-500.0,0.00035671,30]
[425775286,1781887807000,-651.01,0.00035671,30]
[425775283,1781887807000,-533.09294368,0.00035671,30]
[425775289,1781887807000,-500.0,0.00035671,30]
[425775282,1781887807000,-500.0,0.00035671,30]
[425775295,1781887807000,-500.0,0.00035671,30]
[425775297,1781887807000,-500.0,0.00035671,30]
[425775308,1781887807000,-500.0,0.00035671,30]
[425775307,1781887807000,-500.0,0.00035671,30]
[425775306,1781887807000,-1437.17,0.00035671,30]
[425775305,1781887807000,-505.49,0.00035671,30]
[425775304,1781887807000,-741.41,0.00035671,30]
[425775296,1781887807000,-500.0,0.00035671,30]
[425775302,1781887807000,-860.38,0.00035671,30]
[425775301,1781887807000,-500.0,0.00035671,30]
[425775300,1781887807000,-500.0,0.00035671,30]
[425775299,1781887807000,-170.78704844,0.00035671,30]
[425775298,1781887807000,-522.21,0.00035671,30]
[425775303,1781887807000,-615.47071508,0.00035671,30]
[425775320,1781887808000,-151.0,0.00035671,30]
[425775318,1781887808000,-500.0,0.00035671,30]
[425775317,1781887808000,-512.48,0.00035671,30]
[425775316,1781887808000,-500.0,0.00035671,30]
[425775314,1781887808000,-500.0,0.00035671,30]
[425775312,1781887808000,-500.0,0.00035671,30]
[425775313,1781887808000,-500.0,0.00035671,30]
[425775311,1781887808000,-500.0,0.00035671,30]
[425775309,1781887808000,-500.0,0.00035671,30]
[425775319,1781887808000,-500.0,0.00035671,30]
[425775315,1781887808000,-500.0,0.00035671,30]
[425775310,1781887808000,-1064.26,0.00035671,30]
[425775322,1781887808000,-500.0,0.00035671,30]
[425775323,1781887808000,-500.0,0.00035671,30]
[425775321,1781887808000,-500.0,0.00035671,30]
[425775334,1781887808000,-500.0,0.00035671,30]
[425775332,1781887808000,-500.0,0.00035671,30]
[425775333,1781887808000,-500.0,0.00035671,30]
[425775331,1781887808000,-500.0,0.00035671,30]
[425775330,1781887808000,-807.08,0.00035671,30]
[425775327,1781887808000,-576.0,0.00035671,30]
[425775328,1781887808000,-999.65,0.00035671,30]
[425775326,1781887808000,-515.79,0.00035671,30]
[425775325,1781887808000,-1376.12,0.00035671,30]
[425775324,1781887808000,-500.0,0.00035671,30]
[425775329,1781887808000,-802.44,0.00035671,30]
[425775342,1781887809000,-500.0,0.00035671,30]
[425775343,1781887809000,-500.0,0.00035671,30]
[425775345,1781887809000,-1188.41,0.00035671,30]
[425775344,1781887809000,-464.967183,0.00035671,30]
[425775341,1781887809000,-500.0,0.00035671,30]
[425775348,1781887809000,-500.0,0.00035671,30]
[425775339,1781887809000,-250.85,0.00035671,30]
[425775338,1781887809000,-526.37,0.00035671,30]
[425775337,1781887809000,-612.73,0.00035671,30]
[425775335,1781887809000,-500.0,0.00035671,30]
[425775336,1781887809000,-500.0,0.00035671,30]
[425775340,1781887809000,-500.0,0.00035671,30]
[425775346,1781887809000,-500.0,0.00035671,30]
[425775357,1781887809000,-500.0,0.00035671,30]
[425775350,1781887809000,-464.967183,0.00035671,30]
[425775362,1781887809000,-1458.25,0.00035671,30]
[425775360,1781887809000,-500.0,0.00035671,30]
[425775358,1781887809000,-328.21274387,0.00035671,30]
[425775359,1781887809000,-464.967177,0.00035671,30]
[425775361,1781887809000,-500.0,0.00035671,30]
[425775347,1781887809000,-710.03,0.00035671,30]
[425775355,1781887809000,-1214.29,0.00035671,30]
[425775351,1781887809000,-202.211154,0.00035671,30]
[425775353,1781887809000,-500.0,0.00035671,30]
[425775352,1781887809000,-500.0,0.00035671,30]
[425775349,1781887809000,-442.88322343,0.00035671,30]
[425775356,1781887809000,-464.967183,0.00035671,30]
[425775374,1781887810000,-206.425011,0.00035671,30]
[425775372,1781887810000,-500.0,0.00035671,30]
[425775370,1781887810000,-614.38235905,0.00035671,30]
[425775371,1781887810000,-607.03,0.00035671,30]
[425775369,1781887810000,-5534.69,0.00035671,30]
[425775367,1781887810000,-500.0,0.00035671,30]
[425775366,1781887810000,-1675.21,0.00035671,30]
[425775365,1781887810000,-500.0,0.00035671,30]
[425775364,1781887810000,-500.0,0.00035671,30]
[425775363,1781887810000,-2990.41,0.00035671,30]
[425775373,1781887810000,-500.0,0.00035671,30]
[425775368,1781887810000,-500.0,0.00035671,30]
[425775375,1781887810000,-588.7,0.00035671,30]
[425775377,1781887810000,-206.425011,0.00035671,30]
[425775376,1781887810000,-206.425011,0.00035671,30]
[425775389,1781887810000,-500.0,0.00035671,30]
[425775388,1781887810000,-500.0,0.00035671,30]
[425775386,1781887810000,-575.06,0.00035671,30]
[425775385,1781887810000,-500.0,0.00035671,30]
[425775384,1781887810000,-607.04,0.00035671,30]
[425775387,1781887810000,-609.12,0.00035671,30]
[425775383,1781887810000,-500.0,0.00035671,30]
[425775381,1781887810000,-500.0,0.00035671,30]
[425775380,1781887810000,-500.0,0.00035671,30]
[425775379,1781887810000,-3792.83,0.00035671,30]
[425775378,1781887810000,-206.425002,0.00035671,30]
[425775382,1781887810000,-565.87,0.00035671,30]
[425775398,1781887811000,-500.0,0.00035671,30]
[425775397,1781887811000,-500.0,0.00035671,30]
[425775396,1781887811000,-500.0,0.00035671,30]
[425775394,1781887811000,-500.0,0.00035671,30]
[425775392,1781887811000,-1164.63,0.00035671,30]
[425775393,1781887811000,-539.15173626,0.00035671,30]
[425775391,1781887811000,-559.13,0.00035671,30]
[425775390,1781887811000,-853.91,0.00035671,30]
[425775399,1781887811000,-500.0,0.00035671,30]
[425775395,1781887811000,-500.0,0.00035671,30]
[425775401,1781887811000,-500.0,0.00035671,30]
[425775400,1781887811000,-500.0,0.00035671,30]
[425775414,1781887811000,-2092.1,0.00035671,30]
[425775413,1781887811000,-500.0,0.00035671,30]
[425775412,1781887811000,-985.23,0.00035671,30]
[425775411,1781887811000,-500.0,0.00035671,30]
[425775410,1781887811000,-500.0,0.00035671,30]
[425775409,1781887811000,-500.0,0.00035671,30]
[425775403,1781887811000,-500.0,0.00035671,30]
[425775407,1781887811000,-500.0,0.00035671,30]
[425775406,1781887811000,-4074.72,0.00035671,30]
[425775405,1781887811000,-876.43,0.00035671,30]
[425775404,1781887811000,-500.0,0.00035671,30]
[425775402,1781887811000,-3075.0,0.00035671,30]
[425775408,1781887811000,-500.0,0.00035671,30]
[425775425,1781887812000,-500.0,0.00035671,30]
[425775426,1781887812000,-842.27,0.00035671,30]
[425775421,1781887812000,-650.27,0.00035671,30]
[425775423,1781887812000,-640.19,0.00035671,30]
[425775422,1781887812000,-500.0,0.00035671,30]
[425775418,1781887812000,-606.07,0.00035671,30]
[425775420,1781887812000,-500.0,0.00035671,30]
[425775417,1781887812000,-500.0,0.00035671,30]
[425775416,1781887812000,-500.0,0.00035671,30]
[425775415,1781887812000,-1444.74,0.00035671,30]
[425775424,1781887812000,-1776.22,0.00035671,30]
[425775419,1781887812000,-1277.26,0.00035671,30]
[425775427,1781887812000,-652.73,0.00035671,30]
[425775430,1781887812000,-500.0,0.00035671,30]
[425775428,1781887812000,-500.0,0.00035671,30]
[425775441,1781887812000,-500.0,0.00035671,30]
[425775440,1781887812000,-458.01,0.00035671,30]
[425775438,1781887812000,-639.53,0.00035671,30]
[425775439,1781887812000,-500.0,0.00035671,30]
[425775429,1781887812000,-737.33,0.00035671,30]
[425775435,1781887812000,-500.0,0.00035671,30]
[425775437,1781887812000,-500.0,0.00035671,30]
[425775434,1781887812000,-500.0,0.00035671,30]
[425775432,1781887812000,-500.0,0.00035671,30]
[425775433,1781887812000,-500.0,0.00035671,30]
[425775431,1781887812000,-500.0,0.00035671,30]
[425775436,1781887812000,-500.0,0.00035671,30]
[425775450,1781887813000,-621.71,0.00035671,30]
[425775452,1781887813000,-502.42,0.00035671,30]
[425775449,1781887813000,-500.0,0.00035671,30]
[425775451,1781887813000,-500.0,0.00035671,30]
[425775448,1781887813000,-500.0,0.00035671,30]
[425775453,1781887813000,-537.57,0.00035671,30]
[425775447,1781887813000,-500.0,0.00035671,30]
[425775445,1781887813000,-500.0,0.00035671,30]
[425775443,1781887813000,-958.15,0.00035671,30]
[425775444,1781887813000,-553.05,0.00035671,30]
[425775442,1781887813000,-500.0,0.00035671,30]
[425775446,1781887813000,-500.0,0.00035671,30]
[425775455,1781887813000,-500.0,0.00035671,30]
[425775460,1781887813000,-500.0,0.00035671,30]
[425775456,1781887813000,-500.0,0.00035671,30]
[425775454,1781887813000,-575.14,0.00035671,30]
[425775468,1781887813000,-500.0,0.00035671,30]
[425775466,1781887813000,-500.0,0.00035671,30]
[425775467,1781887813000,-500.0,0.00035671,30]
[425775465,1781887813000,-500.0,0.00035671,30]
[425775463,1781887813000,-500.0,0.00035671,30]
[425775469,1781887813000,-500.0,0.00035671,30]
[425775461,1781887813000,-500.0,0.00035671,30]
[425775462,1781887813000,-721.82,0.00035671,30]
[425775459,1781887813000,-294.30376583,0.00035671,30]
[425775457,1781887813000,-500.0,0.00035671,30]
[425775458,1781887813000,-564.32192089,0.00035671,30]
[425775464,1781887813000,-500.0,0.00035671,30]
[425775479,1781887814000,-500.0,0.00035671,30]
[425775477,1781887814000,-757.69,0.00035671,30]
[425775478,1781887814000,-552.56,0.00035671,30]
[425775476,1781887814000,-1847.83,0.00035671,30]
[425775474,1781887814000,-500.0,0.00035671,30]
[425775471,1781887814000,-500.0,0.00035671,30]
[425775473,1781887814000,-1264.79,0.00035671,30]
[425775472,1781887814000,-500.0,0.00035671,30]
[425775470,1781887814000,-1000.0,0.00035671,30]
[425775481,1781887814000,-1265.07,0.00035671,30]
[425775475,1781887814000,-500.0,0.00035671,30]
[425775480,1781887814000,-500.0,0.00035671,30]
[425775483,1781887814000,-500.0,0.00035671,30]
[425775482,1781887814000,-500.0,0.00035671,30]
[425775495,1781887814000,-500.0,0.00035671,30]
[425775494,1781887814000,-500.0,0.00035671,30]
[425775492,1781887814000,-1423.78,0.00035671,30]
[425775493,1781887814000,-500.0,0.00035671,30]
[425775490,1781887814000,-2137.39,0.00035671,30]
[425775491,1781887814000,-1172.01,0.00035671,30]
[425775487,1781887814000,-500.0,0.00035671,30]
[425775488,1781887814000,-510.64,0.00035671,30]
[425775486,1781887814000,-693.9,0.00035671,30]
[425775484,1781887814000,-500.0,0.00035671,30]
[425775485,1781887814000,-500.0,0.00035671,30]
[425775489,1781887814000,-500.0,0.00035671,30]
[425775503,1781887815000,-500.0,0.00035671,30]
[425775507,1781887815000,-592.13,0.00035671,30]
[425775505,1781887815000,-721.41,0.00035671,30]
[425775504,1781887815000,-1391.17,0.00035671,30]
[425775502,1781887815000,-500.0,0.00035671,30]
[425775496,1781887815000,-500.0,0.00035671,30]
[425775500,1781887815000,-357.51433689,0.00035671,30]
[425775498,1781887815000,-500.0,0.00035671,30]
[425775499,1781887815000,-500.0,0.00035671,30]
[425775497,1781887815000,-500.0,0.00035671,30]
[425775506,1781887815000,-1656.0,0.00035671,30]
[425775501,1781887815000,-500.0,0.00035671,30]
[425775508,1781887815000,-500.0,0.00035671,30]
[425775516,1781887815000,-500.0,0.00035671,30]
[425775509,1781887815000,-857.32,0.00035671,30]
[425775510,1781887815000,-500.0,0.00035671,30]
[425775523,1781887815000,-500.0,0.00035671,30]
[425775521,1781887815000,-500.0,0.00035671,30]
[425775520,1781887815000,-156.7830861,0.00035671,30]
[425775517,1781887815000,-500.0,0.00035671,30]
[425775518,1781887815000,-500.0,0.00035671,30]
[425775522,1781887815000,-3646.26,0.00035671,30]
[425775515,1781887815000,-961.56,0.00035671,30]
[425775514,1781887815000,-561.56792927,0.00035671,30]
[425775513,1781887815000,-534.92,0.00035671,30]
[425775512,1781887815000,-500.0,0.00035671,30]
[425775511,1781887815000,-500.0,0.00035671,30]
[425775519,1781887815000,-1123.62,0.00035671,30]
[425775531,1781887816000,-151.0,0.00035671,30]
[425775524,1781887816000,-500.0,0.00035671,30]
[425775525,1781887816000,-151.0,0.00035671,30]
[425775526,1781887816000,-500.0,0.00035671,30]
[425775527,1781887816000,-1427.66,0.00035671,30]
[425775528,1781887816000,-631.67,0.00035671,30]
[425775530,1781887816000,-151.0,0.00035671,30]
[425775529,1781887816000,-711.69,0.00035671,30]
[425775532,1781887816000,-151.0,0.00035671,30]
[425775533,1781887816000,-500.0,0.00035671,30]
[425775538,1781887816000,-711.87,0.00035671,30]
[425775534,1781887816000,-562.71,0.00035671,30]
[425775545,1781887816000,-151.0,0.000357,30]
[425775535,1781887816000,-500.0,0.00035671,30]
[425775543,1781887816000,-150.758105,0.00035695,120]
[425775541,1781887816000,-151.0,0.00035671,30]
[425775544,1781887816000,-151.0,0.000357,30]
[425775539,1781887816000,-151.0,0.00035671,30]
[425775540,1781887816000,-500.0,0.00035671,30]
[425775537,1781887816000,-151.0,0.00035671,30]
[425775536,1781887816000,-500.0,0.00035671,30]
[425775542,1781887816000,-151.0,0.00035671,30]
[425775551,1781887817000,-265.688321,0.000357,30]
[425775546,1781887817000,-151.0,0.000357,30]
[425775547,1781887817000,-205.414,0.000357,30]
[425775548,1781887817000,-205.414,0.000357,30]
[425775549,1781887817000,-205.414,0.000357,30]
[425775553,1781887817000,-265.688321,0.000357,30]
[425775550,1781887817000,-205.414,0.000357,30]
[425775554,1781887817000,-265.688321,0.000357,30]
[425775555,1781887817000,-300.119055,0.00035725,30]
[425775552,1781887817000,-265.688321,0.000357,30]
[425775556,1781887817000,-175.315416,0.00035725,30]
[425775557,1781887817000,-300.119055,0.00035725,30]
[425775558,1781887817000,-175.315416,0.00035725,30]
[425775559,1781887817000,-300.119055,0.00035725,30]
[425775560,1781887817000,-175.315416,0.00035725,30]
[425775561,1781887818000,-300.119059,0.00035725,30]
[425775562,1781887818000,-175.315425,0.00035725,30]
[425775564,1781887818000,-151.0,0.00035725,30]
[425775565,1781887818000,-151.0,0.00035725,30]
[425775567,1781887818000,-151.0,0.00035725,30]
[425775563,1781887818000,-151.0,0.00035725,30]
[425775568,1781887818000,-275.109292,0.00035725,30]
[425775569,1781887818000,-152.060268,0.00035725,30]
[425775570,1781887818000,-151.0,0.00035725,30]
[425775572,1781887818000,-275.109292,0.00035725,30]
[425775571,1781887818000,-280.55876,0.00035725,30]
[425775566,1781887818000,-275.109292,0.00035725,30]
[425775573,1781887819000,-151.0,0.00035725,30]
[425775574,1781887819000,-151.0,0.00035725,30]
[425775575,1781887819000,-151.0,0.00035725,30]
[425775577,1781887819000,-181.747361,0.00035725,30]
[425775576,1781887819000,-275.109285,0.00035725,30]
[425775578,1781887819000,-151.0,0.00035725,30]
[425775580,1781887819000,-207.636981,0.00035725,30]
[425775579,1781887819000,-161.445544,0.00035725,30]
[425775582,1781887819000,-207.636981,0.00035725,30]
[425775581,1781887819000,-207.636981,0.00035725,30]
[425775589,1781887819000,-521.91,0.00035726,30]
[425775586,1781887819000,-151.0,0.00035725,30]
[425775587,1781887819000,-151.0,0.00035725,30]
[425775588,1781887819000,-2677.26216544,0.00035726,120]
[425775585,1781887819000,-151.0,0.00035725,30]
[425775583,1781887819000,-207.63699,0.00035725,30]
[425775584,1781887819000,-151.0,0.00035725,30]
[425775595,1781887820000,-500.0,0.00035726,30]
[425775590,1781887820000,-500.0,0.00035726,30]
[425775591,1781887820000,-500.0,0.00035726,30]
[425775592,1781887820000,-500.0,0.00035726,30]
[425775594,1781887820000,-500.0,0.00035726,30]
[425775593,1781887820000,-500.0,0.00035726,30]
[425775596,1781887820000,-500.0,0.00035726,30]
[425775597,1781887820000,-500.0,0.00035726,30]
[425775606,1781887820000,-500.0,0.00035726,30]
[425775599,1781887820000,-500.0,0.00035726,30]
[425775601,1781887820000,-500.0,0.00035726,30]
[425775600,1781887820000,-500.0,0.00035726,30]
[425775603,1781887820000,-483.05338502,0.00035726,30]
[425775602,1781887820000,-500.0,0.00035726,30]
[425775604,1781887820000,-640.95775314,0.00035726,30]
[425775605,1781887820000,-500.0,0.00035726,30]
[425775598,1781887820000,-644.51397622,0.00035726,30]
[425775613,1781887821000,-500.0,0.00035726,30]
[425775607,1781887821000,-500.0,0.00035726,30]
[425775608,1781887821000,-511.50313068,0.00035726,30]
[425775609,1781887821000,-500.0,0.00035726,30]
[425775610,1781887821000,-500.0,0.00035726,30]
[425775611,1781887821000,-500.0,0.00035726,30]
[425775615,1781887821000,-500.0,0.00035726,30]
[425775612,1781887821000,-500.0,0.00035726,30]
[425775616,1781887821000,-902.01,0.00035726,30]
[425775622,1781887821000,-500.0,0.00035726,30]
[425775617,1781887821000,-500.0,0.00035726,30]
[425775618,1781887821000,-500.0,0.00035726,30]
[425775619,1781887821000,-500.0,0.00035726,30]
[425775620,1781887821000,-500.0,0.00035726,30]
[425775621,1781887821000,-500.0,0.00035726,30]
[425775623,1781887821000,-500.0,0.00035726,30]
[425775614,1781887821000,-500.0,0.00035726,30]
[425775630,1781887822000,-577.1,0.00035726,30]
[425775629,1781887822000,-625.28,0.00035726,30]
[425775628,1781887822000,-500.0,0.00035726,30]
[425775625,1781887822000,-500.0,0.00035726,30]
[425775627,1781887822000,-500.0,0.00035726,30]
[425775631,1781887822000,-500.0,0.00035726,30]
[425775626,1781887822000,-500.0,0.00035726,30]
[425775632,1781887822000,-500.0,0.00035726,30]
[425775624,1781887822000,-500.0,0.00035726,30]
[425775633,1781887822000,-500.0,0.00035726,30]
[425775642,1781887822000,-500.0,0.00035726,30]
[425775639,1781887822000,-500.0,0.00035726,30]
[425775640,1781887822000,-500.0,0.00035726,30]
[425775641,1781887822000,-500.0,0.00035726,30]
[425775638,1781887822000,-661.85,0.00035726,30]
[425775635,1781887822000,-1471.17,0.00035726,30]
[425775636,1781887822000,-500.0,0.00035726,30]
[425775637,1781887822000,-500.0,0.00035726,30]
[425775634,1781887822000,-500.0,0.00035726,30]
[425775649,1781887823000,-500.0,0.00035726,30]
[425775643,1781887823000,-537.63,0.00035726,30]
[425775644,1781887823000,-500.0,0.00035726,30]
[425775645,1781887823000,-500.0,0.00035726,30]
[425775647,1781887823000,-999.39,0.00035726,30]
[425775646,1781887823000,-151.0,0.00035726,30]
[425775648,1781887823000,-500.0,0.00035726,30]
[425775652,1781887823000,-151.83098561,0.00035726,30]